Cogmind - Beta 13 X1 @@@ ROGUE MODE // 2023.09.25 @ 16:59:46 Player: f3-rnm Result: Smashed by cave-in Performance ------------- Evolutions (0) 0 Regions Visited (4) 800 Robots Destroyed (38) 190 Value Destroyed (731) 731 Prototype IDs (0) 0 Alien Tech Used (0) 0 Bonus (0) 0 TOTAL SCORE: 1721 Bonus ------- None Cogmind --------- Core Integrity 0/250 Matter 108/300 Energy 125/125 System Corruption 0% Temperature Cool (0) Movement Treading (240) Ox1 Location -9/Mines Parts ------- > --- POWER (1) -------- Light Ion Engine > --- PROPULSION (2) --- Improved Treads Improved Treads > --- UTILITY (2) ------ Heat Sink Huge Storage Unit > --- WEAPON (2) ------- Improved Light Cannon Makeshift Hammer > --- INVENTORY (25) --- Improved Treads Improved Treads Aluminum Leg Compact Wheel Compact Wheel Compact Wheel Small Storage Unit Large Battery (200) Medium Matter Pod (100) Experimental Sensor Array Transport Network Coupler EM Pulse Gun Particle Gun Particle Gun Beam Cannon Light Cannon Improved Light Cannon Rocket Launcher Peak State ------------ > --- POWER ------------ Light Ion Engine > --- PROPULSION ------- Improved Treads Improved Treads > --- UTILITY ---------- Heat Sink Huge Storage Unit > --- WEAPON ----------- Improved Light Cannon Makeshift Hammer > --- INVENTORY -------- Improved Treads Improved Treads Aluminum Leg Compact Wheel Compact Wheel Compact Wheel Small Storage Unit Large Battery Medium Matter Pod Experimental Sensor Array Transport Network Coupler EM Pulse Gun Particle Gun Particle Gun Beam Cannon Light Cannon Improved Light Cannon Rocket Launcher [Rating: 16] Favorites ----------- Power Light Ion Engine Engine Light Ion Engine Propulsion Light Treads Treads Light Treads Wheel Compact Wheel Utility Huge Storage Unit Device Heat Sink Storage Huge Storage Unit Processor Targeting Computer Protection Weapon Shielding Weapon Improved Light Cannon Energy Gun Medium Laser Ballistic Cannon Improved Light Cannon Impact Weapon Makeshift Hammer Build | -11 -10 -10 -10 -9 ------- Run | Jun Mat Min Exi Min Slots Evolved . | . . . . . Power . | . . . . . Propulsion . | . . . . . Utility . | . . . . . Weapon . | . . . . . Parts Attached 26 | 6 11 8 . 1 Power 4 | 1 1 2 . . Engine 4 | 1 1 2 . . Core . | . . . . . Reactor . | . . . . . Propulsion 7 | 2 3 2 . . Treads 6 | 2 2 2 . . Leg . | . . . . . Wheel 1 | . 1 . . . Hover . | . . . . . Flight . | . . . . . Utility 5 | 1 2 2 . . Device 1 | . . 1 . . Storage 2 | 1 1 . . . Processor 1 | . . 1 . . Hackware . | . . . . . Protection 1 | . 1 . . . Artifact . | . . . . . Weapon 10 | 2 5 2 . 1 Energy Gun 2 | 2 . . . . Energy Cannon . | . . . . . Ballistic Gun . | . . . . . Ballistic Cannon 7 | . 5 2 . . Launcher . | . . . . . Special Weapon . | . . . . . Impact Weapon 1 | . . . . 1 Slashing Weapon . | . . . . . Piercing Weapon . | . . . . . Special Melee Weapon . | . . . . . Unidentified Prototypes . | . . . . . Parts Lost 8 | . 2 6 . . Power 3 | . 1 2 . . Propulsion 3 | . 1 2 . . Utility . | . . . . . Weapon 2 | . . 2 . . Highest Loss Streak 4 | . 2 4 . . To Critical Strikes . | . . . . . Average Slot Usage (%) 96 | . 92 99 100 100 Engine 12 | . 11 13 14 14 Treads 26 | . 25 27 28 28 Device 2 | . . . 14 14 Storage 14 | . 14 14 14 14 Processor 4 | . . 10 . . Protection 6 | . 10 2 . . Energy Gun 3 | . 8 . . . Ballistic Cannon 23 | . 19 27 28 23 Naked Turns . | . . . . . Heaviest Build 92 | 11 92 92 92 92 Greatest Support 46 | 40 40 46 46 46 Greatest Overweight (x) 5 | . 5 4 1 1 Average Overweight (x) 1 | . 2 1 1 1 Largest Inventory Capacity 25 | 8 25 25 25 25 Average Capacity 24 | 6 23 25 25 25 Most Carried 25 | 4 25 25 18 18 Average Carried 19 | 1 15 24 18 18 Final Capacity 25 | 8 25 25 25 25 Final Carried 25 | 1 25 18 18 18 Class Distribution -------------------- 100% | Mutant Dominant Class ---------------- Mutant | -10/Materials Mutant | -10/Mines Mutant | -10/Exiles Mutant | -9/Mines Resources | -11 -10 -10 -10 -9 ----------- Run | Jun Mat Min Exi Min Matter Collected 1016 | 195 518 252 . 51 Remotely . | . . . . . Salvage Created 786 | . 598 175 . 13 Parts 69 | . 50 19 . . Haulers Intercepted 1 | . 1 . . . Recyclers Shooed 2 | . 2 . . . Parts Field Recycled . | . . . . . Retrieved Matter . | . . . . . Parts Self-Destructed . | . . . . . Prevented . | . . . . . Kills | -11 -10 -10 -10 -9 ------- Run | Jun Mat Min Exi Min Combat Hostiles Destroyed 29 | . 16 12 . 1 Melee 1 | . . . . 1 Guns 9 | . 9 . . . Cannons 19 | . 7 12 . . Classes Destroyed 10 | . 8 1 . 1 Worker 1 | . 1 . . . Builder 2 | . 1 1 . . Tunneler 1 | . . 1 . . Hauler 1 | . 1 . . . Recycler 2 | . 2 . . . Operator 1 | . 1 . . . Watcher 2 | . 2 . . . Swarmer 15 | . 9 6 . . Grunt 13 | . 7 6 . . Assembled 1 | . . . . 1 Best Kill Streak 4 | . 4 3 . 1 Combat Bots Only 3 | . 3 3 . 1 Max Kills in Single Turn 2 | . 2 1 . 1 Gunslinging . | . . . . . Exploded . | . . . . . Melee 1 | . . . . 1 Uniques/NPCs Destroyed . | . . . . . Combat | -11 -10 -10 -10 -9 -------- Run | Jun Mat Min Exi Min Damage Taken 1777 | . 670 863 . 244 Core 304 | . 142 71 . 91 Absorbed by Shields . | . . . . . Redirected to Shielding 43 | . 41 2 . . Core Remaining (%) 100 | 100 . . . . Volleys Fired 124 | . 75 48 . 1 Largest 2 | . 2 2 . 2 Hottest 90 | . 90 78 . 78 Shots Fired 242 | . 144 96 . 2 Gun 70 | . 70 . . . Cannon 172 | . 74 96 . 2 Launcher . | . . . . . Special . | . . . . . Kinetic 172 | . 74 96 . 2 Thermal 70 | . 70 . . . Explosive . | . . . . . Electromagnetic . | . . . . . Robot Hit Streak 10 | . 10 8 . . Robot Miss Streak 8 | . 8 5 . . Penetration Max . | . . . . . Secondary Targets . | . . . . . Shots Hit Robots 137 | . 78 58 . 1 Core Hits 52 | . 32 18 . 2 Critical Kills . | . . . . . Critical Parts Destroyed . | . . . . . Critical Strikes 9 | . 5 4 . . Burn 3 | . 3 . . . Blast 6 | . 2 4 . . Melee Attacks 6 | . . . . 6 Impact 6 | . . . . 6 Slashing . | . . . . . Piercing . | . . . . . Sneak Attacks . | . . . . . Combat Hostiles . | . . . . . Follow-up Attacks . | . . . . . Damage Inflicted 2517 | . 1202 1264 . 51 Guns 522 | . 522 . . . Cannons 1941 | . 677 1264 . . Explosions . | . . . . . Melee 45 | . . . . 45 Ramming 9 | . 3 . . 6 Kinetic 1941 | . 677 1264 . . Thermal 522 | . 522 . . . Explosive . | . . . . . Electromagnetic . | . . . . . Impact 45 | . . . . 45 Slashing . | . . . . . Piercing . | . . . . . Highest Corruption . | . . . . . Average Corruption . | . . . . . Corruption Purged . | . . . . . Corruption Blocked . | . . . . . Overload Shots . | . . . . . Overflow Damage 29 | . 6 23 . . Projectiles 29 | . 6 23 . . Explosions . | . . . . . Melee . | . . . . . Knockbacks 43 | . 14 29 . . Impact . | . . . . . Kinetic 38 | . 14 24 . . Secondary 5 | . . 5 . . Self-Inflicted Damage . | . . . . . Shots . | . . . . . Rammed 3 | . 1 1 . 1 Targets Rammed 3 | . 1 1 . 1 Kicked . | . . . . . Crushed . | . . . . . Highest Temperature 303 | . 195 303 . . Average Temperature 69 | . 54 93 . . Received Heat Transfer 564 | . 174 390 . . Effects 1 | . . 1 . . Energy Bleed 1 | . . 1 . . Siege Activations . | . . . . . Robots Corrupted . | . . . . . Combat Hostiles . | . . . . . Parts Fried . | . . . . . Impact Corruptions . | . . . . . Robots Melted . | . . . . . Combat Hostiles . | . . . . . Parts Melted 3 | . 3 . . . Heat Transferred 1646 | . 1646 . . . Parts Sabotaged . | . . . . . Parts Stolen . | . . . . . Parts Stripped . | . . . . . Power Chain Reactions . | . . . . . Missiles Intercepted . | . . . . . Alert | -11 -10 -10 -10 -9 ------- Run | Jun Mat Min Exi Min Peak Influence 257 | . 257 102 . 76 Initial . | . . . . . Average 42 | . 57 27 . 48 Maximum Alert Level 1 | . 1 . . . Low Security (%) 95 | 100 91 100 . 100 Level 1 4 | . 8 . . . Level 2 . | . . . . . Level 3 . | . . . . . Level 4 . | . . . . . Level 5 . | . . . . . High Security . | . . . . . Max Security . | . . . . . Squads Dispatched 3 | . 3 . . . Investigation 2 | . 2 . . . Extermination . | . . . . . Reinforcement 1 | . 1 . . . Assault . | . . . . . Garrison . | . . . . . Intercept . | . . . . . Searches Triggered . | . . . . . Construction Impeded . | . . . . . Haulers Reinforced . | . . . . . Active Scanning Responses . | . . . . . Cargo Convoy Interrupts . | . . . . . Stealth | -11 -10 -10 -10 -9 --------- Run | Jun Mat Min Exi Min Distress Signals 2 | . 2 . . . Communications Jammed . | . . . . . Distress Signals . | . . . . . Times Spotted 46 | . 26 14 . 6 Peak Tracking Total 5 | . 5 3 . 3 Tactical Retreats 5 | . . 2 . 3 Traps | -11 -10 -10 -10 -9 ------- Run | Jun Mat Min Exi Min Traps Triggered 3 | . 3 . . . Indirectly . | . . . . . Trap Hack Attempts . | . . . . . Triggered . | . . . . . Disarmed . | . . . . . Reprogrammed . | . . . . . Reused . | . . . . . Traps Extracted . | . . . . . Installed . | . . . . . Triggered . | . . . . . Machines | -11 -10 -10 -10 -9 ---------- Run | Jun Mat Min Exi Min Machines Disabled 2 | . . 2 . . Max in Single Turn 1 | . . 1 . . Machines Repaired . | . . . . . Machines Sabotaged . | . . . . . Overloaded Fab Kills . | . . . . . Hacking | -11 -10 -10 -10 -9 --------- Run | Jun Mat Min Exi Min Machines Accessed 4 | . 3 . 1 . Terminals 3 | . 3 . . . Fabricators . | . . . . . Repair Stations . | . . . . . Recycling Units . | . . . . . Scanalyzers . | . . . . . Garrison Access . | . . . . . Total Hacks 27 | . 4 . 23 . Successful 27 | . 4 . 23 . Failed . | . . . . . Catastrophic . | . . . . . Database Lockouts . | . . . . . Manual . | . . . . . Terminals 4 | . 4 . . . Fabricators . | . . . . . Repair Stations . | . . . . . Recycling Units . | . . . . . Scanalyzers . | . . . . . Garrison Access . | . . . . . Terminal Hacks 27 | . 4 . 23 . Record 23 | . . . 23 . Terminal Index 1 | . 1 . . . Alert Level 1 | . 1 . . . Unreport Threat 1 | . 1 . . . Hauler Manifests 1 | . 1 . . . Fabricator Hacks . | . . . . . Repair Station Hacks . | . . . . . Recycling Unit Hacks . | . . . . . Scanalyzer . | . . . . . Garrison Access Hacks . | . . . . . Unauthorized Hacks . | . . . . . Terminals . | . . . . . Fabricators . | . . . . . Repair Stations . | . . . . . Recycling Units . | . . . . . Scanalyzers . | . . . . . Garrison Access . | . . . . . Data Cores Recovered . | . . . . . Used . | . . . . . Hacking Detections 1 | . 1 . . . Full Trace Events . | . . . . . Feedback Events . | . . . . . Feedback Blocked . | . . . . . Robot Schematics Acquired . | . . . . . Robots Built . | . . . . . Authchips . | . . . . . Time . | . . . . . Total Robot Build Rating . | . . . . . Part Schematics Acquired . | . . . . . Parts Built . | . . . . . Authchips . | . . . . . Time . | . . . . . Total Part Build Rating . | . . . . . Parts Repaired . | . . . . . Time . | . . . . . Parts Recycled . | . . . . . Recycled Matter . | . . . . . Retrieved Matter . | . . . . . Retrieved Components . | . . . . . Parts Scanalyzed . | . . . . . Part Schematics Acquired . | . . . . . Parts Damaged . | . . . . . Bothacking | -11 -10 -10 -10 -9 ------------ Run | Jun Mat Min Exi Min Used RIF Installer . | . . . . . Robots Hacked . | . . . . . Non-combat . | . . . . . Combat . | . . . . . Robot Hacks Applied . | . . . . . Relay Couplers Released . | . . . . . Fabnet Peak Effective % . | . . . . . Robots Rewired . | . . . . . Allies Hacked . | . . . . . Hacks Repelled . | . . . . . Allies | -11 -10 -10 -10 -9 -------- Run | Jun Mat Min Exi Min Total Allies . | . . . . . Largest Group . | . . . . . Highest-Rated Group . | . . . . . Highest-Rated Ally . | . . . . . Total Orders . | . . . . . Ally Attacks . | . . . . . Total Damage . | . . . . . Kills . | . . . . . Allies Corrupted . | . . . . . Allies Melted . | . . . . . Intel | -11 -10 -10 -10 -9 ------- Run | Jun Mat Min Exi Min Robot Analysis Total . | . . . . . Derelict Logs Recovered 2 | . . 2 . . Drone Launches . | . . . . . Drone Recoveries . | . . . . . Exploration | -11 -10 -10 -10 -9 ------------- Run | Jun Mat Min Exi Min Turns Passed 4801 | 72 2199 1898 459 173 Spaces Moved 1464 | 47 636 541 192 48 Core 14 | 14 . . . . Treads 1378 | 33 564 541 192 48 Legs . | . . . . . Wheels 72 | . 72 . . . Hover . | . . . . . Flight . | . . . . . Fastest Speed 50 | 50 160 240 240 240 Average Speed 290 | 127 298 317 240 240 Slowest Speed 480 | 160 480 480 240 240 Overloaded Moves . | . . . . . Propulsion Burnouts . | . . . . . Robots Hopped . | . . . . . Cave-ins Triggered 1 | . . . . 1 Exploration Rate (%) 51 | 4 85 99 50 17 Regions Visited 4 Branch Regions 3 Pre-discovered Areas 3 | . . 2 1 . Known Exits Taken . | . . . . . Unknown Exits Taken 4 | 1 1 1 1 . Scrap Searched 1 | . . 1 . . Spaces Dug 2 | . . . . 2 Terrain Destroyed 6 | . . 4 . 2 Melee 2 | . . . . 2 Projectile 4 | . . 4 . . AOE . | . . . . . Terrain Rammed . | . . . . . Walls Destroyed . | . . . . . Machines Disabled . | . . . . . Actions | -11 -10 -10 -10 -9 --------- Run | Jun Mat Min Exi Min Total 1768 | 59 795 627 191 96 Wait 96 | . 34 23 . 39 Move 1460 | 46 635 540 191 48 Hop . | . . . . . Pick Up 42 | 7 32 3 . . Fast Attach 3 | . 2 1 . . Attach 15 | 6 3 6 . . Detach . | . . . . . Swap 8 | . 6 1 . 1 Drop 11 | . 7 4 . . Fire 124 | . 75 48 . 1 Melee 6 | . . . . 6 Ram . | . . . . . Kick . | . . . . . Crush 3 | . 1 1 . 1 Escape Stasis . | . . . . . Rewire . | . . . . . Trap . | . . . . . Miscellaneous . | . . . . . Route ------- -11/Junkyard -10/Materials (discovered 5 exits: [*Mat x3] / [*Min] / [*Sub]) -10/Mines (discovered 4 exits: [*Mat x2] / *Exi / [*Sub]) -10/Exiles -9/Mines History --------- Turn | Location | Event 8 | -11/Junkyard | Discovered new exit (range 15) 73 | -11/Junkyard | Entered Materials 315 | -10/Materials | Build established: Mutant 559 | -10/Materials | Discovered new exit (range 3) 746 | -10/Materials | Core integrity fell below 50% 755 | -10/Materials | Discovered new exit (range 5) 849 | -10/Materials | Discovered new exit (range 13) 1078 | -10/Materials | Discovered new exit (range 5) 1476 | -10/Materials | Discovered new exit (range 13) 2272 | -10/Materials | Entered Mines 2305 | -10/Mines | Received a Rocket Launcher from a helpful Derelict 2388 | -10/Mines | A weapon hastily lodged in a ceiling crevice suddenly fell to the ground 2733 | -10/Mines | Learned location of Zion (-7) 2953 | -10/Mines | Discovered new exit (range 9) 2975 | -10/Mines | Discovered new exit (range 10) 3651 | -10/Mines | Found a damaged Exp. Sensor Array with a note attached 3658 | -10/Mines | Found Prototype Device 3832 | -10/Mines | Learned location of Storage (-7) 3959 | -10/Mines | Discovered new exit (range 7) 4077 | -10/Mines | Core integrity fell below 20% 4120 | -10/Mines | Lost 4 parts (1p1n2w) 4160 | -10/Mines | Deemed a non-threat by the Exiles lab entrance 4160 | -10/Mines | Discovered new exit (range 5) 4170 | -10/Mines | Entered Exiles 4233 | -10/Exiles | Met 8R-AWN 4266 | -10/Exiles | Met EX-HEX 4362 | -10/Exiles | Met EX-DEC 4605 | -10/Exiles | Discovered new exit (range 10) 4629 | -10/Exiles | Entered Mines 4630 | -9/Mines | Assembled infested the area 4635 | -9/Mines | Assisted by a Guerilla fighting off Assembled 4803 | -9/Mines | Crushed by falling debris 4803 | -9/Mines | Smashed by cave-in Last Messages --------------- coming from, and they're closing on this area, come on!" 04639_ C-30 ARC bursts open, deploying its payload. 04639_ D-53 Grenadier unfolds itself. 04666_ HV Slug penetrates L-31 Rogue. 04666_ L-31 Rogue knocked back. 04676_ R-06 Scavenger collects Bore Cannon. 04679_ K-01 Serf collects debris. 04679_ U-05 Engineer builds a Wall. 04681_ R-06 Scavenger collects Phase Shifter. 04682_ Slammed into K-01 Serf. 04683_ R-06 Scavenger collects Sml. Laser. 04684_ R-06 Scavenger collects Flexi-carbon Leg. 04685_ Acquired 51 matter. 04686_ R-06 Scavenger collects Aluminum Leg. 04693_ K-01 Serf collects debris. 04779_ as-39301 sneak attacks. 04779_ U-05 Engineer system corrupted by crushing effect. 04790_ as-39301 destroyed. 04803_ The unstable cave ceiling collapses. 04803_ Crushed by falling debris. Map ----- +----------------------------------------------------+ | ????????????????????????????## #?? | | ??????????????????????????### ##?? | | ?????????????????????????## ####??? | | ?????????????????????????# ##?????? | | ?????????????????????????# #??????? | | ????????????????????????## #??????? | | ?????????????????????#### #??????? | | ????????????????????## ## #??????? | | ????????????????????# ###### #??????? | | ????????????????????# ##?????###??????? | | ????????????????????## ###???????????????? | | ?????????????????????## #?????????????????? | | ??????????????????????# #????? ??????????? | | ??????????????????????# ###!""" ??????????? | | ?????????????????????## %*""" ??????????? | | ?????????????????????# ! ###%""" ??????????? | | ???????????????####### ###???? ?????????? | | ???????????????# #?#??????? #????????? | | ???????????????# ######???????????????????? | | ???????????????# #????????????????????????? | | ???????????????# #????????????????????????? | | ???????????????# #????????????????????????? | | ???????????????# #????????????????????????? | | ???????????????# #????????????????????????? | | ???????????????# #?????###????????????????? | | ??????????????## #######@#????????????????? | | ??????????????# ##%#????????????????? | | ??????????????# ##???????????????? | | ??????????????# #???????????????? | | ??????????????# ##???????????????? | | ??????????????# #????????????????? | | ??????????????# #### ##????????????????? | | ?????????????# ##??####?????????????????? | | ??????????? #?????????????????????????? | | ??????????# ##??????????????????????????? | | ??????????## #????????????????????????????? | | ???????????###?????????????????????????????? | | ???????????????????????????????????????????? | | ???????????????????????????????????????????? | | ???????????????????????????????????????????? | | | | | | | | | | | | | | | | | | | | | +----------------------------------------------------+ Best States ------------- Heat Dissipation 35 Energy Generation 10 Energy Capacity 125 Matter Stores 300 Matter Capacity 300 Sight Range 16 Terrain Scan Density 10 Weapon Shielding 33 Evasion (%) 50 Targeting Accuracy 5 Recoil Reduction 2 Item Schematics ----------------- None Robot Schematics ------------------ None Fabricated ------------ Nothing Alien Tech Used ----------------- None Achievements -------------- None Challenges ------------ None Game ------ Seed DimensionalNuclearMaul Manual? 0 Play Time 00:14:43 Cumulative 80.4 hours Start 2023.09.24 @ 20:15:15 End 2023.09.25 @ 16:59:46 Sessions 1 Manual Loads 0 Difficulty Rogue Special Mode None Game No. 79 Rogue 43 Adventurer 36 Explorer 0 Win Type - Total 7 Types 2/0/5/0/0/0/0/0/0 Lore% 46 Gallery% 68 Achievement% 58 Wizard Run 0 Options --------- ASCII 0 Keyboard 0 Movement Mouse Keybinds 0 Fullscreen 1 Font 18/SmallcapsGlow Map View 76x50 Tactical HUD 1 Map Filters NONE Filters NONE Steam 1 RUN: 8016415c-9e0f-41b0-97a0-d6042378cfe1